fUST/lending_fUST_20250622
["ID","MTS","AMOUNT","RATE_DAILY","PERIOD"]
[366892533,1750553443362,-158.16713217,0.00023517,2]
[366892534,1750553443371,-25000.0,0.00023517,2]
[366892535,1750553443381,-4994.22255238,0.00023517,2]
[366892536,1750553443392,-500.0,0.00023517,2]
[366892537,1750553443402,-1218.40898946,0.00023521,9]
[366892538,1750553443412,-800.0,0.00023615,2]
[366892539,1750553443422,-1000.0,0.00023623,2]
[366892540,1750553443432,-1218.40898946,0.00023624,9]
[366892541,1750553443442,-500.0,0.00023641,2]
[366892542,1750553443452,-460.0,0.00023652,2]
[366892543,1750553443461,-460.0,0.00023652,2]
[366892544,1750553443471,-1189.7,0.00023652,2]
[366892545,1750553443481,-500.0,0.00023653,2]
[366892546,1750553443490,-151.0,0.000237,7]
[366892547,1750553443500,-1218.40898946,0.00023728,9]
[366892548,1750553443509,-736.21,0.00023732,2]
[366892549,1750553443518,-736.21,0.00023732,2]
[366892550,1750553443528,-736.21,0.00023732,2]
[366892551,1750553443538,-736.21,0.00023732,2]
[366892552,1750553443547,-736.2534613,0.00023732,2]
[366892553,1750553443557,-500.0,0.00023733,2]
[366892554,1750553443566,-460.0,0.00023739,2]
[366892555,1750553443577,-500.0,0.0002374,2]
[366892556,1750553443590,-500.0,0.0002374,2]
[366892557,1750553443600,-500.0,0.0002374,2]
[366892558,1750553443611,-800.0,0.00023741,2]
[366892559,1750553443622,-503.2118004,0.00023742,2]
[366892560,1750553443631,-1723.416997,0.00023746,2]
[366892561,1750553443642,-1000.0,0.00023757,2]
[366892562,1750553443652,-800.0,0.00023765,2]
[366892563,1750553443662,-228.77965678,0.00023793,2]
[366892564,1750553443672,-500.0,0.00023805,2]
[366892565,1750553443681,-420.0,0.00023807,2]
[366892566,1750553443691,-460.0,0.00023816,2]
[366892567,1750553443701,-460.0,0.00023816,2]
[366892568,1750553443710,-460.0,0.00023816,2]
[366892569,1750553443720,-420.0,0.00023817,2]
[366892570,1750553443731,-577.47816892,0.0002382,2]
[366892571,1750553443741,-1218.40898946,0.00023831,10]
[366892572,1750553443751,-604.69214774,0.00023837,2]
[366892573,1750553443762,-460.0,0.00023837,2]
[366892574,1750553443772,-1189.7,0.00023837,2]
[366892575,1750553443783,-800.0,0.00023838,2]
[366892576,1750553443793,-500.0,0.00023854,2]
[366892577,1750553443803,-500.0,0.00023854,2]
[366892578,1750553443813,-500.91748917,0.00023864,2]
[366892579,1750553443822,-500.0,0.00023864,2]
[366892580,1750553443831,-418.5,0.0002388,3]
[366892581,1750553443841,-1000.0,0.0002388,2]
[366892582,1750553443851,-1000.0,0.00023899,2]
[366892583,1750553443862,-800.0,0.000239,2]
[366892584,1750553443873,-1000.0,0.00023906,2]
[366892585,1750553443883,-168.0,0.00023924,2]
[366892586,1750553443895,-500.0,0.00023927,2]
[366892587,1750553443905,-500.0,0.00023933,2]
[366892588,1750553443915,-500.0,0.00023933,2]
[366892589,1750553443925,-500.0,0.00023933,2]
[366892590,1750553443935,-536.80640207,0.00023933,2]
[366892591,1750553443945,-500.0,0.00023933,2]
[366892592,1750553443955,-503.33767011,0.00023933,2]
[366892593,1750553443966,-500.0,0.00023933,2]
[366892594,1750553443976,-500.0,0.00023933,2]
[366892595,1750553443986,-500.0,0.00023933,2]
[366892596,1750553443995,-506.00183821,0.00023933,2]
[366892597,1750553444005,-240.91048382,0.00023933,2]
[366892598,1750553444014,-500.0,0.00023933,2]
[366892599,1750553444023,-500.0,0.00023933,2]
[366892600,1750553444033,-1218.40898946,0.00023934,10]
[366892601,1750553444043,-151.0,0.0002394,7]
[366892602,1750553444052,-460.0,0.00023944,2]
[366892603,1750553444062,-569.11768354,0.00023945,2]
[366892604,1750553444071,-1216.89683298,0.00023945,2]
[366892605,1750553444081,-500.0,0.00023946,2]
[366892606,1750553444091,-168.0,0.00023987,2]
[366892607,1750553444102,-800.0,0.00023995,2]
[366892608,1750553444112,-151.0,0.00024,7]
[366892609,1750553444122,-299.63381,0.00024,7]
[366892610,1750553444131,-151.0,0.00024,8]
[366892611,1750553444142,-160.0,0.00024,7]
[366892612,1750553444152,-151.0,0.00024,5]
[366892613,1750553444162,-160.0,0.00024,7]
[366892614,1750553444171,-424.93363889,0.00024,7]
[366892615,1750553444181,-160.0,0.00024,7]
[366892616,1750553444191,-230.10342898,0.00024,7]
[366892617,1750553444200,-500.0,0.00024003,2]
[366892618,1750553444210,-371.36,0.00024008,2]
[366892619,1750553444219,-1189.7,0.00024008,2]
[366892620,1750553444228,-1189.7,0.00024008,2]
[366892621,1750553444238,-1189.7,0.00024008,2]
[366892622,1750553444247,-1189.7,0.00024008,2]
[366892623,1750553444257,-1189.7,0.00024008,2]
[366892624,1750553444266,-1189.80992361,0.00024008,2]
[366892625,1750553444276,-460.0,0.00024008,2]
[366892626,1750553444286,-460.0,0.00024008,2]
[366892627,1750553444295,-160.0,0.00024009,3]
[366892628,1750553444304,-846.23824438,0.00024009,3]
[366892629,1750553444313,-424.93363889,0.00024009,3]
[366892630,1750553444322,-160.0,0.0002401,3]
[366892631,1750553444331,-160.0,0.0002401,3]
[366892632,1750553444340,-846.23824438,0.0002401,3]
[366892633,1750553444351,-160.0,0.0002401,3]
[366892634,1750553444361,-160.0,0.0002401,3]
[366892635,1750553444378,-12549.17366507,0.0002401,3]
[366892636,1750553444393,-160.0,0.0002401,3]
[366892637,1750553444403,-213.55395994,0.0002401,3]
[366892638,1750553444412,-836.41202323,0.0002401,3]
[366892639,1750553444421,-230.10342898,0.0002401,3]
[366892640,1750553444430,-1218.40898946,0.00024038,10]
[366892641,1750553444440,-460.0,0.00024053,2]
[366892642,1750553444449,-500.0,0.00024075,2]
[366892643,1750553444459,-500.0,0.00024075,2]
[366892644,1750553444468,-202.8378055,0.00024086,18]
[366892645,1750553444477,-1000.0,0.00024087,2]
[366892646,1750553444486,-800.0,0.00024089,2]
[366892647,1750553444496,-1218.40898946,0.00024141,10]
[366892648,1750553444505,-500.0,0.00024149,2]
[366892649,1750553444514,-837.0,0.00024151,3]
[366892650,1750553444523,-214.21761045,0.00024164,2]
[366892651,1750553444532,-1500.0,0.00024171,2]
[366892652,1750553444541,-800.0,0.00024189,2]
[366892653,1750553444551,-297.47450317,0.00024207,2]
[366892654,1750553444560,-1000.0,0.00024224,2]
[366892655,1750553444571,-202.8378055,0.00024227,19]
[366892656,1750553444584,-500.0,0.0002423,2]
[366892657,1750553444593,-1218.40898946,0.00024245,10]
[366892658,1750553444603,-1723.416997,0.00024274,2]
[366892659,1750553444612,-228.77965678,0.00024287,2]
[366892660,1750553444623,-419.05263805,0.00024288,2]
[366892661,1750553444632,-500.0,0.00024288,2]
[366892662,1750553444642,-500.0,0.00024288,2]
[366892663,1750553444652,-800.0,0.00024289,2]
[366892664,1750553444663,-800.0,0.00024298,2]
[366892665,1750553444673,-151.0,0.000243,5]
[366892666,1750553444683,-151.0,0.000243,7]
[366892667,1750553444692,-168.0,0.0002432,2]
[366892668,1750553444702,-500.0,0.00024333,2]
[366892669,1750553444712,-500.0,0.00024345,2]
[366892670,1750553444723,-1218.40898946,0.00024348,11]
[366892671,1750553444732,-202.8378055,0.00024368,20]
[366892672,1750553444743,-1000.0,0.00024371,2]
[366892673,1750553444752,-500.0,0.0002438,2]
[366892674,1750553444761,-800.0,0.00024395,2]
[366892675,1750553444771,-460.0,0.000244,2]
[366892676,1750553444780,-1393.0,0.00024401,2]
[366892677,1750553444790,-800.0,0.00024423,2]
[366892678,1750553444800,-800.0,0.00024424,2]
[366892679,1750553444809,-1218.40898946,0.00024452,11]
[366892680,1750553444819,-214.21761045,0.00024466,2]
[366892681,1750553444829,-1000.0,0.0002449,2]
[366892682,1750553444839,-1000.0,0.00024498,2]
[366892683,1750553444849,-800.0,0.00024506,2]
[366892684,1750553444858,-500.0,0.00024508,2]
[366892685,1750553444869,-202.8378055,0.00024508,22]
[366892686,1750553444879,-800.0,0.0002451,2]
[366892687,1750553444889,-460.0,0.00024551,2]
[366892688,1750553444899,-460.0,0.00024551,2]
[366892689,1750553444908,-1000.0,0.00024552,2]
[366892690,1750553444918,-1218.40898946,0.00024555,11]
[366892691,1750553444927,-800.0,0.00024557,2]
[366892692,1750553444937,-500.0,0.00024563,2]
[366892693,1750553444947,-151.0,0.000246,6]
[366892694,1750553444956,-151.0,0.000246,10]
[366892695,1750553444966,-800.0,0.00024619,2]
[366892696,1750553444975,-1000.0,0.00024633,2]
[366892697,1750553444985,-202.8378055,0.00024649,23]
[366892698,1750553444994,-160.0,0.00024656,2]
[366892699,1750553445005,-575.51207583,0.00024658,7]
[366892700,1750553445016,-398.84497512,0.00024658,2]
[366892701,1750553445026,-1218.40898946,0.00024659,11]
[366892702,1750553445036,-151.0,0.00024662,7]
[366892703,1750553445045,-460.0,0.00024699,2]
[366892704,1750553445055,-3998.64,0.000247,7]
[366892705,1750553445065,-1050.61,0.000247,7]
[366892706,1750553445075,-800.0,0.00024705,2]
[366892707,1750553445085,-168.0,0.00024708,2]
[366892708,1750553445096,-500.0,0.0002471,2]
[366892709,1750553445106,-500.0,0.00024716,2]
[366892710,1750553445116,-800.0,0.00024737,2]
[366892711,1750553445126,-800.0,0.00024759,2]
[366892712,1750553445136,-1000.0,0.0002476,2]
[366892713,1750553445146,-1218.40898946,0.00024762,11]
[366892714,1750553445156,-1000.0,0.00024765,2]
[366892715,1750553445165,-228.77965678,0.00024781,2]
[366892716,1750553445175,-202.8378055,0.0002479,25]
[366892717,1750553445185,-460.0,0.00024799,2]
[366892718,1750553445195,-460.0,0.00024799,2]
[366892719,1750553445205,-161.76219306,0.000248,4]
[366892720,1750553445214,-161.76219306,0.000248,4]
[366892721,1750553445224,-161.76219306,0.000248,4]
[366892722,1750553445234,-161.76,0.000248,4]
[366892723,1750553445243,-150.97804686,0.000248,4]
[366892724,1750553445253,-150.97804686,0.000248,4]
[366892725,1750553445262,-150.97804686,0.000248,4]
[366892726,1750553445271,-150.97804686,0.000248,4]
[366892727,1750553445281,-150.97804686,0.000248,4]
[366892728,1750553445290,-150.97804686,0.000248,4]
[366892729,1750553445300,-150.97804686,0.000248,4]
[366892730,1750553445310,-150.97804686,0.000248,4]
[366892731,1750553445319,-150.97804686,0.000248,4]
[366892732,1750553445415,-15396.03186794,0.000248,3]
[366892733,1750553445425,-167.45607276,0.00024801,2]
[366892734,1750553445435,-1723.416997,0.00024801,2]
[366892735,1750553445445,-151.0,0.00024856,7]
[366892736,1750553445454,-800.0,0.00024863,2]
[366892737,1750553445463,-1218.40898946,0.00024866,12]
[366892738,1750553445473,-1112.965286,0.00024869,4]
[366892739,1750553445482,-500.0,0.00024873,2]
[366892740,1750553445492,-215.0738,0.00024886,2]
[366892741,1750553445502,-460.0,0.00024889,2]
[366892742,1750553445511,-977.18024176,0.0002489,2]
[366892743,1750553445521,-460.0,0.00024899,2]
[366892744,1750553445530,-460.0,0.00024899,2]
[366892745,1750553445540,-525.29659677,0.00024899,2]
[366892746,1750553445550,-460.0,0.00024899,2]
[366892747,1750553445559,-460.0,0.00024899,2]
[366892748,1750553445569,-460.0,0.00024899,2]
[366892749,1750553445579,-460.0,0.00024899,2]
[366892750,1750553445592,-460.0,0.00024899,2]
[366892751,1750553445603,-353.52,0.00024899,2]
[366892752,1750553445613,-460.0,0.00024899,2]
[366892753,1750553445623,-460.0,0.00024899,2]
[366892754,1750553445633,-460.0,0.00024899,2]
[366892755,1750553445642,-460.0,0.00024899,2]
[366892756,1750553445652,-460.0,0.00024899,2]
[366892757,1750553445664,-151.0,0.000249,7]
[366892758,1750553445674,-70976.04,0.000249,2]
[366892759,1750553445683,-611080.194275,0.000249,2]
[366892760,1750553445692,-800.0,0.00024901,2]
[366892761,1750553445702,-200.0,0.0002491,11]
[366892762,1750553445712,-168.0,0.00024925,2]
[366892763,1750553445722,-202.8378055,0.00024931,26]
[366892764,1750553445732,-800.0,0.00024931,2]
[366892765,1750553445741,-1218.40898946,0.00024969,12]
[366892766,1750553445752,-1000.0,0.00024978,2]
[366892767,1750553445762,-800.0,0.00024982,2]
[366892768,1750553445771,-1387.6,0.00025,2]
[366892769,1750553445781,-523.9660634,0.00025,10]
[366892770,1750553445790,-1000.0,0.0002505,2]
[366892771,1750553445800,-800.0,0.00025069,2]
[366892772,1750553445810,-202.8378055,0.00025072,27]
[366892773,1750553445819,-1218.40898946,0.00025072,12]
[366892774,1750553445829,-800.0,0.00025081,2]
[366892775,1750553445838,-151.0,0.00025124,2]
[366892776,1750553445848,-154.45200966,0.00025124,2]
[366892777,1750553445858,-154.37795966,0.00025124,2]
[366892778,1750553445868,-151.0,0.00025124,2]
[366892779,1750553445877,-151.0,0.00025124,2]
[366892780,1750553445887,-151.0,0.00025124,2]
[366892781,1750553445896,-151.0,0.00025124,2]
[366892782,1750553445905,-500.0,0.00025124,2]
[366892783,1750553445915,-160.07829289,0.00025124,2]
[366892784,1750553445924,-151.0,0.00025124,2]
[366892785,1750553445933,-151.0,0.00025124,2]
[366892786,1750553445943,-151.0,0.00025124,2]
[366892787,1750553445952,-965.0,0.00025134,2]
[366892788,1750553445962,-654.0,0.00025134,2]
[366892789,1750553445971,-2161.0,0.00025134,2]
[366892790,1750553445980,-800.0,0.00025136,2]
[366892791,1750553445989,-151.0,0.00025151,2]
[366892792,1750553445999,-151.0,0.00025151,2]
[366892793,1750553446008,-198.0,0.00025151,2]
[366892794,1750553446018,-198.0,0.00025151,2]
[366892795,1750553446028,-500.0,0.00025151,2]
[366892796,1750553446038,-151.0,0.00025151,2]
[366892797,1750553446048,-151.0,0.00025151,2]
[366892798,1750553446057,-1218.40898946,0.00025176,12]
[366892799,1750553446067,-151.0,0.00025179,2]
[366892800,1750553446077,-198.0,0.00025179,2]
[366892801,1750553446086,-500.0,0.00025179,2]
[366892802,1750553446096,-198.0,0.00025179,2]
[366892803,1750553446105,-198.0,0.00025179,2]
[366892804,1750553446116,-189.0,0.000252,2]
[366892805,1750553446125,-151.0,0.00025206,2]
[366892807,1750553446135,-500.0,0.00025206,2]
[366892808,1750553446145,-202.8378055,0.00025213,29]
[366892809,1750553446154,-151.0,0.00025226,7]
[366892810,1750553446164,-233.0,0.00025234,2]
[366892811,1750553446174,-500.0,0.00025234,2]
[366892812,1750553446183,-1000.0,0.00025238,2]
[366892813,1750553446193,-500.0,0.00025261,2]
[366892814,1750553446203,-150.97,0.00025275,4]
[366892815,1750553446213,-228.77965678,0.00025275,2]
[366892816,1750553446222,-1218.40898946,0.00025279,12]
[366892817,1750553446232,-1545.429993,0.0002528,5]
[366892818,1750553446241,-1118.888283,0.0002528,5]
[366892819,1750553446250,-1345.31991872,0.00025288,2]
[366892820,1750553446260,-500.0,0.00025288,2]
[366892821,1750553446270,-800.0,0.00025294,2]
[366892822,1750553446279,-2000.0,0.000253,2]
[366892823,1750553446289,-2000.0,0.000253,2]
[366892824,1750553446299,-720.16,0.000253,31]
[366892825,1750553446308,-720.16,0.000253,31]
[366892826,1750553446318,-720.16,0.000253,31]
[366892827,1750553446327,-720.16,0.000253,31]
[366892828,1750553446337,-720.16,0.000253,31]
[366892829,1750553446346,-720.16,0.000253,31]
[366892830,1750553446356,-720.16,0.000253,31]
[366892831,1750553446366,-720.16,0.000253,31]
[366892832,1750553446375,-720.16,0.000253,31]
[366892833,1750553446384,-720.16,0.000253,31]
[366892834,1750553446394,-720.16,0.000253,31]
[366892835,1750553446404,-720.16,0.000253,31]
[366892836,1750553446413,-720.16,0.000253,31]
[366892837,1750553446423,-720.16,0.000253,31]
[366892838,1750553446433,-720.16,0.000253,31]
[366892839,1750553446442,-720.16,0.000253,31]
[366892840,1750553446452,-1000.0,0.000253,5]
[366892841,1750553446461,-1000.0,0.000253,5]
[366892842,1750553446471,-250.0,0.000253,30]
[366892843,1750553446480,-500.0,0.00025316,2]
[366892844,1750553446490,-1427.52628656,0.0002534,2]
[366892845,1750553446499,-500.0,0.00025343,2]
[366892846,1750553446509,-500.0,0.00025349,9]
[366892847,1750553446518,-202.8378055,0.00025354,30]
[366892848,1750553446527,-168.0,0.00025359,2]
[366892849,1750553446536,-151.0,0.00025365,7]
[366892850,1750553446545,-151.0,0.00025365,7]
[366892851,1750553446555,-218.174127,0.00025365,7]
[366892852,1750553446564,-218.174127,0.00025365,7]
[366892853,1750553446573,-218.174127,0.00025365,7]
[366892854,1750553446586,-218.174127,0.00025365,7]
[366892855,1750553446595,-218.174127,0.00025365,7]
[366892856,1750553446604,-218.174127,0.00025365,7]
[366892857,1750553446613,-218.174127,0.00025365,7]
[366892858,1750553446623,-218.174127,0.00025365,7]
[366892859,1750553446633,-218.174127,0.00025365,7]
[366892860,1750553446642,-218.174127,0.00025365,7]
[366892862,1750553446652,-218.174127,0.00025365,7]
[366892864,1750553446662,-218.174127,0.00025365,7]
[366892865,1750553446672,-218.174127,0.00025365,7]
[366892866,1750553446681,-218.174127,0.00025365,7]
[366892867,1750553446690,-218.174127,0.00025365,7]
[366892868,1750553446700,-218.174127,0.00025365,7]
[366892869,1750553446709,-218.174127,0.00025365,7]
[366892870,1750553446719,-218.174127,0.00025365,7]
[366892871,1750553446728,-218.174127,0.00025365,7]
[366892872,1750553446737,-218.174121,0.00025365,7]
[366892873,1750553446747,-151.0,0.00025365,7]
[366892874,1750553446757,-1500.0,0.00025365,14]
[366892875,1750553446766,-1500.0,0.00025365,14]
[366892876,1750553446776,-1500.0,0.00025365,14]
[366892877,1750553446785,-1500.0,0.00025365,14]
[366892878,1750553446795,-1500.0,0.00025365,14]
[366892879,1750553446804,-1500.0,0.00025365,14]
[366892880,1750553446813,-151.0,0.00025365,7]
[366892881,1750553446823,-151.0,0.00025365,7]
[366892882,1750553446832,-151.0,0.00025365,7]
[366892883,1750553446842,-151.0,0.00025365,7]
[366892884,1750553446851,-151.0,0.00025365,7]
[366892885,1750553446860,-151.0,0.00025365,7]
[366892886,1750553446871,-151.0,0.00025365,7]
[366892887,1750553446880,-151.0,0.00025365,7]
[366892888,1750553446890,-151.0,0.00025365,7]
[366892889,1750553446899,-179.95371,0.00025365,7]
[366892890,1750553446908,-151.0,0.00025365,7]
[366892891,1750553446918,-151.0,0.00025365,7]
[366892892,1750553446927,-151.0,0.00025365,7]
[366892893,1750553446937,-151.0,0.00025365,7]
[366892894,1750553446946,-151.0,0.00025365,7]
[366892895,1750553446956,-151.0,0.00025365,7]
[366892896,1750553446965,-151.0,0.00025365,7]
[366892897,1750553446975,-151.0,0.00025365,7]
[366892898,1750553446984,-151.0,0.00025365,7]
[366892899,1750553446994,-151.0,0.00025365,7]
[366892900,1750553447004,-151.0,0.00025365,7]
[366892901,1750553447014,-151.0,0.00025365,7]
[366892902,1750553447024,-151.0,0.00025365,7]
[366892903,1750553447034,-151.0,0.00025365,7]
[366892904,1750553447044,-206.41754,0.00025365,7]
[366892905,1750553447053,-151.0,0.00025365,7]
[366892906,1750553447063,-151.0,0.00025365,7]
[366892907,1750553447072,-151.0,0.00025365,7]
[366892908,1750553447082,-500.0,0.00025371,2]
[366892909,1750553447091,-150.0,0.00025373,2]
[366892910,1750553447101,-500.0,0.00025373,2]
[366892911,1750553447111,-500.0,0.00025373,2]
[366892912,1750553447121,-189.1644967,0.00025373,2]
[366892913,1750553447131,-500.0,0.00025373,2]
[366892914,1750553447140,-500.0,0.00025373,2]
[366892915,1750553447149,-500.0,0.00025373,2]
[366892916,1750553447159,-500.0,0.00025373,2]
[366892917,1750553447168,-579.6336408,0.00025373,2]
[366892918,1750553447177,-600.0,0.00025373,2]
[366892919,1750553447187,-500.0,0.00025373,2]
[366892920,1750553447197,-500.0,0.00025373,2]
[366892921,1750553447206,-500.0,0.00025373,2]
[366892922,1750553447215,-151.0,0.00025373,7]
[366892923,1750553447224,-151.0,0.00025373,7]
[366892924,1750553447234,-153.585354,0.00025373,7]
[366892925,1750553447243,-151.0,0.00025373,7]
[366892926,1750553447252,-151.0,0.00025373,7]
[366892927,1750553447262,-193.87763,0.00025373,7]
[366892928,1750553447271,-151.0,0.00025373,7]
[366892929,1750553447280,-151.0,0.00025373,7]
[366892930,1750553447289,-151.0,0.00025373,7]
[366892931,1750553447299,-151.0,0.00025373,7]
[366892932,1750553447308,-241.44626,0.00025373,7]
[366892933,1750553447317,-345.559419,0.00025373,7]
[366892934,1750553447327,-345.559419,0.00025373,7]
[366892935,1750553447336,-345.559419,0.00025373,7]
[366892936,1750553447345,-345.559419,0.00025373,7]
[366892937,1750553447355,-345.559419,0.00025373,7]
[366892938,1750553447364,-345.559419,0.00025373,7]
[366892939,1750553447440,-345.559419,0.00025373,7]
[366892940,1750553447458,-345.559419,0.00025373,7]
[366892941,1750553447467,-345.559419,0.00025373,7]
[366892942,1750553447478,-345.559419,0.00025373,7]
[366892943,1750553447488,-345.559419,0.00025373,7]
[366892944,1750553447497,-345.559419,0.00025373,7]
[366892945,1750553447506,-345.559419,0.00025373,7]
[366892946,1750553447516,-345.559419,0.00025373,7]
[366892947,1750553447527,-345.559419,0.00025373,7]
[366892948,1750553447538,-345.559419,0.00025373,7]
[366892949,1750553447547,-345.559419,0.00025373,7]
[366892950,1750553447557,-345.559419,0.00025373,7]
[366892951,1750553447567,-345.559419,0.00025373,7]
[366892952,1750553447576,-345.559426,0.00025373,7]
[366892953,1750553447589,-151.0,0.00025374,7]
[366892954,1750553447598,-151.0,0.00025374,7]
[366892955,1750553447609,-151.0,0.00025374,7]
[366892956,1750553447619,-151.0,0.00025374,7]
[366892957,1750553447629,-151.0,0.00025374,7]
[366892958,1750553447638,-151.0,0.00025374,7]
[366892959,1750553447648,-151.0,0.00025374,7]
[366892960,1750553447659,-151.0,0.00025374,7]
[366892961,1750553447668,-151.0,0.00025374,7]
[366892962,1750553447678,-199.703958,0.00025374,7]
[366892963,1750553447687,-151.0,0.00025374,7]
[366892964,1750553447696,-151.0,0.00025374,7]
[366892965,1750553447706,-151.0,0.00025374,7]
[366892966,1750553447715,-151.0,0.00025374,7]
[366892967,1750553447724,-151.0,0.00025374,7]
[366892968,1750553447734,-151.0,0.00025374,7]
[366892969,1750553447743,-151.0,0.00025374,7]
[366892970,1750553447753,-151.0,0.00025374,7]
[366892971,1750553447762,-151.0,0.00025374,7]
[366892972,1750553447771,-151.0,0.00025374,7]
[366892973,1750553447780,-151.0,0.00025374,7]
[366892974,1750553447790,-151.0,0.00025374,7]
[366892975,1750553447799,-151.0,0.00025374,7]
[366892976,1750553447809,-151.0,0.00025374,7]
[366892977,1750553447818,-151.0,0.00025374,7]
[366892978,1750553447828,-151.0,0.00025374,7]
[366892979,1750553447838,-151.0,0.00025374,7]
[366892980,1750553447848,-151.0,0.00025374,7]
[366892981,1750553447857,-151.0,0.00025374,7]
[366892982,1750553447867,-151.0,0.00025374,7]
[366892983,1750553447877,-151.0,0.00025374,7]
[366892984,1750553447886,-151.0,0.00025374,7]
[366892985,1750553447896,-161.712763,0.00025374,7]
[366892986,1750553447905,-6068.36973246,0.00025374,2]
[366892987,1750553447914,-14397.80236329,0.00025374,2]
[366892988,1750553447924,-215346.56864912,0.00025375,20]
[366892989,1750553448164,-9086.35681462,0.00025375,20]
[366892990,1750553452367,-106393.87616559,0.00025375,20]
[366892991,1750553452451,-500.0,0.00021916,2]
[366892992,1750553452460,-500.0,0.00021916,2]
[366892993,1750553452470,-460.0,0.00021917,2]
[366892994,1750553452479,-289.65,0.00021917,2]
[366892995,1750553452489,-460.0,0.00021917,2]
[366892996,1750553452498,-460.0,0.00021917,2]
[366892997,1750553452507,-301.13777983,0.00021917,2]
[366892998,1750553452529,-158.86222017,0.00021917,2]
[366892999,1750553452538,-460.0,0.00021917,2]
[366893000,1750553452547,-225.94771583,0.00021917,2]
[366893001,1750553452647,-530.55505842,0.00021916,2]
[366893002,1750553452656,-500.0,0.00021916,2]
[366893003,1750553452667,-500.0,0.00021916,2]
[366893004,1750553452676,-500.0,0.00021916,2]
[366893005,1750553452686,-500.0,0.00021916,2]
[366893006,1750553452695,-234.05228417,0.00021917,2]
[366893007,1750553452704,-339.51490891,0.00021917,2]
[366893008,1750553452714,-460.0,0.00021917,2]
[366893009,1750553452723,-200.0,0.00023561,2]
[366893010,1750553452731,-200.0,0.00023561,2]
[366893011,1750553452740,-200.0,0.00023561,2]
[366893012,1750553452749,-1729.812895,0.000248,2]
[366893013,1750553452759,-321.0759099,0.00024899,2]
[366893014,1750553452769,-151.0,0.00025124,2]
[366893015,1750553452777,-151.0,0.00025124,2]
[366893016,1750553452787,-198.0,0.00025124,2]
[366893017,1750553452796,-1000.0,0.000253,2]
[366893018,1750553452805,-8616.63891698,0.00025375,20]
[366893019,1750553452817,-1929.28507595,0.00025375,20]
[366893020,1750553452828,-20469.41514114,0.00025375,20]
[366893021,1750553454639,-12073.13081695,0.00025375,20]
[366893022,1750553454651,-777.72140645,0.00025375,20]
[366893032,1750553566505,152.43412841,0.000222,69]
[366893034,1750554051739,152.43412841,0.000222,69]
[366893035,1750554201190,250.388801,0.00013699,2]
[366893037,1750554290567,200.0,0.00019102,2]
[366893039,1750554433143,-250.388801,0.00020187,2]
[366893040,1750554433164,-166.239334,0.00020914,2]
[366893041,1750554433186,-168.0,0.00021839,2]
[366893042,1750554433214,-284.29543099,0.000219,6]
[366893043,1750554433233,-160.0,0.00021904,2]
[366893044,1750554433254,-300.0,0.00021915,2]
[366893045,1750554433275,-500.0,0.00021916,7]
[366893046,1750554433297,-500.0,0.00021916,2]
[366893047,1750554433318,-503.25807226,0.00021916,2]